[Event "*** Titled Tuesday Blitz"]
[Site "Chess.com"]
[Date "2018.04.03"]
[Round "4"]
[White "ST-Sandavagur"]
[Black "spidernv"]
[Result "1/2-1/2"]
[WhiteElo "2426"]
[BlackElo "2344"]
[TimeControl "180+2"]
[EndTime "13:57:42 PDT"]
[Termination "Game drawn by repetition"]

1. e4 {[%clk 0:01:21.2]} 1... c6 {[%clk 0:02:52.4]} 2. d4 {[%clk 0:01:21.2]}
2... d5 {[%clk 0:02:53.6]} 3. f3 {[%clk 0:01:22.2]} 3... e6 {[%clk 0:02:52.6]}
4. Nc3 {[%clk 0:01:22.5]} 4... dxe4 {[%clk 0:02:53.3]} 5. fxe4 {[%clk
0:01:23.1]} 5... Bb4 {[%clk 0:02:54.3]} 6. Qd3 {[%clk 0:01:18]} 6... Nf6 {[%clk
0:02:53.7]} 7. Nf3 {[%clk 0:01:15.4]} 7... Qa5 {[%clk 0:02:54.6]} 8. Bd2 {[%clk
0:01:13.4]} 8... Nbd7 {[%clk 0:02:54.7]} 9. e5 {[%clk 0:01:09.1]} 9... Nd5
{[%clk 0:02:53.8]} 10. Ne4 {[%clk 0:01:02.6]} 10... Bxd2+ {[%clk 0:02:53]} 11.
Nfxd2 {[%clk 0:00:58]} 11... O-O {[%clk 0:02:51.6]} 12. c3 {[%clk 0:00:58.4]}
12... f5 {[%clk 0:02:49.7]} 13. exf6 {[%clk 0:00:51.9]} 13... N7xf6 {[%clk
0:02:49.6]} 14. Nxf6+ {[%clk 0:00:51.5]} 14... Nxf6 {[%clk 0:02:48]} 15. Be2
{[%clk 0:00:49.5]} 15... e5 {[%clk 0:02:46.3]} 16. Nc4 {[%clk 0:00:50.3]} 16...
Qd5 {[%clk 0:02:29.6]} 17. Nxe5 {[%clk 0:00:35.9]} 17... Qxg2 {[%clk 0:02:30]}
18. O-O-O {[%clk 0:00:36.8]} 18... Qg5+ {[%clk 0:02:29.7]} 19. Qd2 {[%clk
0:00:35.7]} 19... Qxd2+ {[%clk 0:02:28.1]} 20. Kxd2 {[%clk 0:00:37.6]} 20...
Ne4+ {[%clk 0:02:29.8]} 21. Ke3 {[%clk 0:00:37.2]} 21... Nf2 {[%clk 0:02:24.3]}
22. Bc4+ {[%clk 0:00:37.2]} 22... Kh8 {[%clk 0:02:25.5]} 23. Rdf1 {[%clk
0:00:29.5]} 23... Ng4+ {[%clk 0:02:25.9]} 24. Kd2 {[%clk 0:00:21.8]} 24... Nf6
{[%clk 0:02:13.2]} 25. Nf7+ {[%clk 0:00:20.1]} 25... Kg8 {[%clk 0:02:13.6]} 26.
Ne5+ {[%clk 0:00:11]} 26... Kh8 {[%clk 0:02:13.9]} 27. Rhg1 {[%clk 0:00:12.9]}
27... Bh3 {[%clk 0:02:06.7]} 28. Rf3 {[%clk 0:00:12.2]} 28... Ne4+ {[%clk
0:02:04.8]} 29. Ke3 {[%clk 0:00:12.9]} 29... Rxf3+ {[%clk 0:02:05.7]} 30. Nxf3
{[%clk 0:00:14.1]} 30... Nd6 {[%clk 0:02:03.8]} 31. Bd3 {[%clk 0:00:13.8]} 31...
Re8+ {[%clk 0:02:04.7]} 32. Ne5 {[%clk 0:00:15.2]} 32... Be6 {[%clk 0:02:01.7]}
33. b3 {[%clk 0:00:14.2]} 33... Bg8 {[%clk 0:01:56.1]} 34. Kd2 {[%clk
0:00:14.2]} 34... Nf7 {[%clk 0:01:54.2]} 35. Nf3 {[%clk 0:00:09.5]} 35... Rd8
{[%clk 0:01:54.1]} 36. Rg3 {[%clk 0:00:09.5]} 36... Nd6 {[%clk 0:01:52]} 37. Ne5
{[%clk 0:00:08.8]} 37... c5 {[%clk 0:01:53.2]} 38. Ng6+ {[%clk 0:00:03.3]} 38...
hxg6 {[%clk 0:01:52.9]} 39. Rh3+ {[%clk 0:00:05.2]} 39... Bh7 {[%clk 0:01:53.2]}
40. Bxg6 {[%clk 0:00:07.1]} 40... cxd4 {[%clk 0:01:52.2]} 41. Bxh7 {[%clk
0:00:07.2]} 41... dxc3+ {[%clk 0:01:53.3]} 42. Kxc3 {[%clk 0:00:08]} 42... g5
{[%clk 0:01:53.9]} 43. Bd3+ {[%clk 0:00:08.1]} 43... Kg7 {[%clk 0:01:53.4]} 44.
Rh7+ {[%clk 0:00:07.4]} 44... Kf6 {[%clk 0:01:54.6]} 45. Rh6+ {[%clk 0:00:08.3]}
45... Ke5 {[%clk 0:01:55.1]} 46. Rg6 {[%clk 0:00:09.4]} 46... Kf4 {[%clk
0:01:54.8]} 47. Rg7 {[%clk 0:00:10.8]} 47... Rc8+ {[%clk 0:01:55.2]} 48. Kd2
{[%clk 0:00:10.2]} 48... Rd8 {[%clk 0:01:56.4]} 49. Ke2 {[%clk 0:00:10.8]} 49...
Re8+ {[%clk 0:01:56.9]} 50. Kf2 {[%clk 0:00:11.2]} 50... Re3 {[%clk 0:01:57.1]}
51. Bc2 {[%clk 0:00:10.2]} 51... Rh3 {[%clk 0:01:57.9]} 52. Kg2 {[%clk
0:00:10.6]} 52... Rc3 {[%clk 0:01:59.1]} 53. Bh7 {[%clk 0:00:10.7]} 53... Re3
{[%clk 0:01:58.1]} 54. Rd7 {[%clk 0:00:11.4]} 54... Re2+ {[%clk 0:01:58.9]} 55.
Kf1 {[%clk 0:00:12.3]} 55... Rd2 {[%clk 0:02:00]} 56. Ke1 {[%clk 0:00:11.6]}
56... Rd4 {[%clk 0:02:00.9]} 57. Ke2 {[%clk 0:00:09.7]} 57... Rd5 {[%clk
0:01:56.3]} 58. a4 {[%clk 0:00:06.3]} 58... a5 {[%clk 0:01:56.3]} 59. Bg8 {[%clk
0:00:04.9]} 59... Rd4 {[%clk 0:01:56]} 60. Ke1 {[%clk 0:00:05.5]} 60... Ke5
{[%clk 0:01:56]} 61. Rg7 {[%clk 0:00:05.6]} 61... Kf6 {[%clk 0:01:51.2]} 62. Rd7
{[%clk 0:00:06.4]} 62... Ke5 {[%clk 0:01:46.1]} 63. Rg7 {[%clk 0:00:06.5]} 63...
Kf4 {[%clk 0:01:46.9]} 64. Rd7 {[%clk 0:00:06.5]} 64... b6 {[%clk 0:01:45.8]}
65. Ke2 {[%clk 0:00:06.1]} 65... Ke5 {[%clk 0:01:45.9]} 66. Rg7 {[%clk
0:00:04.3]} 66... Ne4 {[%clk 0:01:43.3]} 67. Re7+ {[%clk 0:00:05.4]} 67... Kf6
{[%clk 0:01:41.7]} 68. Rf7+ {[%clk 0:00:05.4]} 68... Kg6 {[%clk 0:01:39]} 69.
Rb7 {[%clk 0:00:07.3]} 69... Rb4 {[%clk 0:01:29]} 70. Bc4 {[%clk 0:00:02.9]}
70... Nc5 {[%clk 0:01:25.9]} 71. Rc7 {[%clk 0:00:02.4]} 71... Nxb3 {[%clk
0:01:24.8]} 72. Rc6+ {[%clk 0:00:03.8]} 72... Kf5 {[%clk 0:01:25.5]} 73. Bxb3
{[%clk 0:00:04.5]} 73... Rxb3 {[%clk 0:01:26.5]} 74. Kf2 {[%clk 0:00:05.9]}
74... Rb4 {[%clk 0:01:22.4]} 75. Kf3 {[%clk 0:00:06.5]} 75... g4+ {[%clk
0:01:21.1]} 76. Kg3 {[%clk 0:00:07.7]} 76... Ke5 {[%clk 0:01:22.1]} 77. Rg6
{[%clk 0:00:07.9]} 77... Kf5 {[%clk 0:01:22.6]} 78. Rd6 {[%clk 0:00:07.8]} 78...
Rb3+ {[%clk 0:01:23.7]} 79. Kg2 {[%clk 0:00:08.3]} 79... Kf4 {[%clk 0:01:23.6]}
80. Rf6+ {[%clk 0:00:09.2]} 80... Kg5 {[%clk 0:01:24.9]} 81. Rd6 {[%clk
0:00:10]} 81... Rb4 {[%clk 0:01:24.8]} 82. Kg3 {[%clk 0:00:10.3]} 82... Rb3+
{[%clk 0:01:26.1]} 83. Kg2 {[%clk 0:00:11.2]} 83... Kf5 {[%clk 0:01:26.8]} 84.
Kf2 {[%clk 0:00:08.2]} 84... Ke5 {[%clk 0:01:24.3]} 85. Rg6 {[%clk 0:00:08.6]}
85... Rb4 {[%clk 0:01:25]} 86. Kg3 {[%clk 0:00:08.5]} 86... Kf5 {[%clk
0:01:21.9]} 87. Rd6 {[%clk 0:00:09.3]} 87... Rb3+ {[%clk 0:01:21.7]} 88. Kg2
{[%clk 0:00:10.6]} 88... Kf4 {[%clk 0:01:21.9]} 89. Rf6+ {[%clk 0:00:11.3]}
89... Kg5 {[%clk 0:01:23.3]} 90. Rd6 {[%clk 0:00:12.2]} 90... Kh5 {[%clk
0:01:18.7]} 91. Re6 {[%clk 0:00:10.8]} 91... Kg5 {[%clk 0:01:18.9]} 92. Rd6
{[%clk 0:00:12]} 92... Kf5 {[%clk 0:01:20]} 93. Rh6 {[%clk 0:00:09.3]} 93... Rb4
{[%clk 0:01:17.4]} 94. Kg3 {[%clk 0:00:09.5]} 94... Rxa4 {[%clk 0:01:15.9]} 95.
Rxb6 {[%clk 0:00:10.1]} 95... Ra3+ {[%clk 0:01:17.3]} 96. Kg2 {[%clk 0:00:11]}
96... a4 {[%clk 0:01:17.8]} 97. Ra6 {[%clk 0:00:12.1]} 97... Ra1 {[%clk
0:01:17.8]} 98. Kg3 {[%clk 0:00:12.7]} 98... a3 {[%clk 0:01:17.4]} 99. Kg2
{[%clk 0:00:14]} 99... a2 {[%clk 0:01:18.5]} 100. Ra4 {[%clk 0:00:11.6]} 100...
Kg5 {[%clk 0:01:16.8]} 101. Ra5+ {[%clk 0:00:10.5]} 101... Kf6 {[%clk
0:01:17.9]} 102. Ra4 {[%clk 0:00:11.8]} 102... Ke6 {[%clk 0:01:17.9]} 103. h3
{[%clk 0:00:05]} 103... gxh3+ {[%clk 0:01:18.5]} 104. Kh2 {[%clk 0:00:06.1]}
104... Kd5 {[%clk 0:01:19.2]} 105. Ra8 {[%clk 0:00:06.4]} 105... Kc4 {[%clk
0:01:19.3]} 106. Ra7 {[%clk 0:00:06.6]} 106... Kb5 {[%clk 0:01:18.5]} 107. Ra8
{[%clk 0:00:07.4]} 107... Kb4 {[%clk 0:01:18.5]} 108. Rb8+ {[%clk 0:00:08.2]}
108... Ka3 {[%clk 0:01:19.2]} 109. Ra8+ {[%clk 0:00:10.1]} 109... Kb2 {[%clk
0:01:20.5]} 110. Rb8+ {[%clk 0:00:11]} 110... Kc1 {[%clk 0:01:20.9]} 111. Ra8
{[%clk 0:00:12.9]} 111... Kd1 {[%clk 0:01:20.1]} 112. Ra7 {[%clk 0:00:12.9]}
112... Ke2 {[%clk 0:01:21]} 113. Ra8 {[%clk 0:00:12.8]} 113... Kf3 {[%clk
0:01:21.9]} 114. Ra7 {[%clk 0:00:13.6]} 114... Kg4 {[%clk 0:01:23]} 115. Ra8
{[%clk 0:00:14]} 115... Kf5 {[%clk 0:01:16.7]} 116. Ra7 {[%clk 0:00:15]} 116...
Ke6 {[%clk 0:01:16.2]} 117. Ra3 {[%clk 0:00:15.5]} 117... Kd5 {[%clk 0:01:16.7]}
118. Ra8 {[%clk 0:00:16]} 118... Kc4 {[%clk 0:01:18]} 119. Ra7 {[%clk
0:00:15.2]} 119... Kb3 {[%clk 0:01:18.7]} 120. Rb7+ {[%clk 0:00:16.2]} 120...
Ka4 {[%clk 0:01:19.3]} 121. Ra7+ {[%clk 0:00:17.1]} 121... Kb5 {[%clk
0:01:21.2]} 122. Ra8 {[%clk 0:00:17.7]} 122... Kb6 {[%clk 0:01:19]} 123. Ra3
{[%clk 0:00:18.3]} 123... Kb5 {[%clk 0:01:19.2]} 124. Ra8 {[%clk 0:00:19]}
1/2-1/2

[Event "*** Titled Tuesday Blitz"]
[Site "Chess.com"]
[Date "2018.04.03"]
[Round "5"]
[White "fancyknightmaneuvers"]
[Black "Danny_The_Donkey"]
[Result "0-1"]
[WhiteElo "2515"]
[BlackElo "2658"]
[TimeControl "180+2"]
[EndTime "14:02:04 PDT"]
[Termination "Danny_The_Donkey won by resignation"]

1. Nf3 {[%clk 0:03:01.2]} 1... Nf6 {[%clk 0:02:58.1]} 2. c4 {[%clk 0:03:02.4]}
2... e6 {[%clk 0:02:57.7]} 3. g3 {[%clk 0:03:02.8]} 3... d5 {[%clk 0:02:58.2]}
4. Bg2 {[%clk 0:03:02.6]} 4... c5 {[%clk 0:02:59.2]} 5. O-O {[%clk 0:03:02.5]}
5... d4 {[%clk 0:02:57.1]} 6. d3 {[%clk 0:03:02.5]} 6... Nc6 {[%clk 0:02:57.8]}
7. a3 {[%clk 0:03:03]} 7... Bd6 {[%clk 0:02:55.2]} 8. Nbd2 {[%clk 0:03:00.6]}
8... Qe7 {[%clk 0:02:49.6]} 9. Ng5 {[%clk 0:02:47.2]} 9... O-O {[%clk
0:02:44.9]} 10. Nge4 {[%clk 0:02:45.8]} 10... Nxe4 {[%clk 0:02:46.1]} 11. Nxe4
{[%clk 0:02:47.7]} 11... Bc7 {[%clk 0:02:47.4]} 12. b4 {[%clk 0:02:32]} 12...
cxb4 {[%clk 0:02:45.8]} 13. axb4 {[%clk 0:02:33.9]} 13... Nxb4 {[%clk
0:02:41.7]} 14. Ba3 {[%clk 0:02:34.1]} 14... a5 {[%clk 0:02:41.9]} 15. Qb3
{[%clk 0:02:26.8]} 15... Bd7 {[%clk 0:02:39.6]} 16. Rfb1 {[%clk 0:02:18.4]}
16... f5 {[%clk 0:02:35.4]} 17. Nd2 {[%clk 0:02:13.2]} 17... Bc6 {[%clk
0:02:20]} 18. Bxb4 {[%clk 0:02:09]} 18... axb4 {[%clk 0:02:19.5]} 19. Rxa8
{[%clk 0:01:43.8]} 19... Rxa8 {[%clk 0:02:19]} 20. Qxb4 {[%clk 0:01:44.4]} 20...
Qxb4 {[%clk 0:02:16.6]} 21. Rxb4 {[%clk 0:01:43.6]} 21... Ba5 {[%clk 0:02:09.8]}
22. Rb2 {[%clk 0:01:42.8]} 22... Bc3 {[%clk 0:02:09.3]} 23. Rc2 {[%clk
0:01:42.8]} 23... Ra1+ {[%clk 0:02:10.3]} 24. Nf1 {[%clk 0:01:43.6]} 24... Ba4
{[%clk 0:02:11.5]} 0-1

[Event "*** Titled Tuesday Blitz"]
[Site "Chess.com"]
[Date "2018.04.03"]
[Round "5"]
[White "ChessQueen"]
[Black "olomi007"]
[Result "1-0"]
[WhiteElo "2659"]
[BlackElo "2543"]
[TimeControl "180+2"]
[EndTime "14:02:39 PDT"]
[Termination "ChessQueen won by resignation"]

1. e4 {[%clk 0:03:01.9]} 1... c5 {[%clk 0:03:00.9]} 2. Nf3 {[%clk 0:03:02.8]}
2... d6 {[%clk 0:03:02.5]} 3. Bb5+ {[%clk 0:03:03.1]} 3... Nd7 {[%clk
0:03:02.8]} 4. c3 {[%clk 0:02:59.4]} 4... a6 {[%clk 0:03:02.8]} 5. Ba4 {[%clk
0:03:00.5]} 5... b5 {[%clk 0:02:59.3]} 6. Bc2 {[%clk 0:03:01.4]} 6... Ngf6
{[%clk 0:03:00.4]} 7. O-O {[%clk 0:03:02.3]} 7... g6 {[%clk 0:02:59]} 8. a4
{[%clk 0:03:02.2]} 8... Bb7 {[%clk 0:02:59.5]} 9. Qe2 {[%clk 0:03:02.8]} 9...
Bg7 {[%clk 0:02:58.7]} 10. d4 {[%clk 0:03:01.9]} 10... cxd4 {[%clk 0:02:59.2]}
11. cxd4 {[%clk 0:02:57.6]} 11... O-O {[%clk 0:02:51.7]} 12. e5 {[%clk
0:02:34.5]} 12... dxe5 {[%clk 0:02:51.6]} 13. dxe5 {[%clk 0:02:35.4]} 13... Bxf3
{[%clk 0:02:31.7]} 14. gxf3 {[%clk 0:02:36.6]} 14... Nh5 {[%clk 0:02:32.7]} 15.
f4 {[%clk 0:02:34.5]} 15... Nc5 {[%clk 0:02:28]} 16. Nc3 {[%clk 0:02:30.1]}
16... Ne6 {[%clk 0:02:16.5]} 17. Rd1 {[%clk 0:02:25.5]} 17... Nd4 {[%clk
0:01:51.1]} 18. Qe4 {[%clk 0:02:19.9]} 18... Nxc2 {[%clk 0:01:10.3]} 19. Rxd8
{[%clk 0:02:17.5]} 19... Rfxd8 {[%clk 0:01:11.3]} 20. Qxc2 {[%clk 0:02:16.9]}
20... b4 {[%clk 0:01:12.7]} 21. Ne4 {[%clk 0:02:13.9]} 21... Rac8 {[%clk
0:01:13.6]} 22. Nc5 {[%clk 0:02:14.8]} 22... b3 {[%clk 0:01:07.3]} 23. Qxb3
{[%clk 0:02:02.1]} 23... Rc6 {[%clk 0:01:07.3]} 24. Be3 {[%clk 0:02:02.2]} 1-0

[Event "*** Titled Tuesday Blitz"]
[Site "Chess.com"]
[Date "2018.04.03"]
[Round "5"]
[White "Supernotar"]
[Black "FearNoEvil12"]
[Result "1/2-1/2"]
[WhiteElo "2105"]
[BlackElo "1986"]
[TimeControl "180+2"]
[EndTime "14:02:44 PDT"]
[Termination "Game drawn - insufficient material"]

1. d4 {[%clk 0:03:00.1]} 1... b5 {[%clk 0:02:59.7]} 2. e4 {[%clk 0:03:00]} 2...
a6 {[%clk 0:03:00.9]} 3. Nf3 {[%clk 0:03:00.3]} 3... Bb7 {[%clk 0:03:02.2]} 4.
Bd3 {[%clk 0:03:01.4]} 4... e6 {[%clk 0:03:03.6]} 5. Qe2 {[%clk 0:03:02.3]} 5...
Nf6 {[%clk 0:03:04.5]} 6. O-O {[%clk 0:03:03.2]} 6... d6 {[%clk 0:03:05.7]} 7.
Re1 {[%clk 0:03:03.2]} 7... Nbd7 {[%clk 0:03:06.4]} 8. Nbd2 {[%clk 0:03:04.4]}
8... h6 {[%clk 0:03:06.4]} 9. c3 {[%clk 0:03:05.8]} 9... g5 {[%clk 0:03:06]} 10.
Nf1 {[%clk 0:03:06.4]} 10... Rg8 {[%clk 0:02:58.3]} 11. a4 {[%clk 0:03:06.8]}
11... bxa4 {[%clk 0:02:57.4]} 12. Rxa4 {[%clk 0:03:06.9]} 12... g4 {[%clk
0:02:54]} 13. N3d2 {[%clk 0:03:01.1]} 13... h5 {[%clk 0:02:54.7]} 14. Bxa6
{[%clk 0:03:00.4]} 14... Rxa6 {[%clk 0:02:49]} 15. Rxa6 {[%clk 0:03:01]} 15...
Bxa6 {[%clk 0:02:49.6]} 16. Qxa6 {[%clk 0:03:01.9]} 16... h4 {[%clk 0:02:50.5]}
17. Qc6 {[%clk 0:03:00.1]} 17... Bh6 {[%clk 0:02:47.3]} 18. Nc4 {[%clk
0:02:53.5]} 18... Bxc1 {[%clk 0:02:44.7]} 19. Rxc1 {[%clk 0:02:54.5]} 19... Ke7
{[%clk 0:02:37.2]} 20. e5 {[%clk 0:02:54.9]} 20... dxe5 {[%clk 0:02:36]} 21.
dxe5 {[%clk 0:02:51.9]} 21... Nd5 {[%clk 0:02:34.4]} 22. Nfe3 {[%clk 0:02:52.8]}
22... Nxe3 {[%clk 0:02:28.7]} 23. fxe3 {[%clk 0:02:52.5]} 23... Qa8 {[%clk
0:02:19.9]} 24. Qxc7 {[%clk 0:02:51]} 24... h3 {[%clk 0:02:16.7]} 25. Qd6+
{[%clk 0:02:51.2]} 25... Ke8 {[%clk 0:02:15.4]} 26. Qxd7+ {[%clk 0:02:51.1]}
26... Kxd7 {[%clk 0:02:11]} 27. Nb6+ {[%clk 0:02:52.1]} 27... Kc6 {[%clk
0:02:12.2]} 28. Nxa8 {[%clk 0:02:53.2]} 28... Rxa8 {[%clk 0:02:12.1]} 29. gxh3
{[%clk 0:02:54.1]} 29... gxh3 {[%clk 0:02:11]} 30. Kf2 {[%clk 0:02:54.9]} 30...
Ra2 {[%clk 0:02:09.4]} 31. Rc2 {[%clk 0:02:55.7]} 31... Kd5 {[%clk 0:02:08.1]}
32. Kg3 {[%clk 0:02:55.5]} 32... Kxe5 {[%clk 0:02:09.1]} 33. Kxh3 {[%clk
0:02:56.9]} 33... Ke4 {[%clk 0:02:10.3]} 34. Kg4 {[%clk 0:02:56.5]} 34... f5+
{[%clk 0:02:06.6]} 35. Kg5 {[%clk 0:02:57.4]} 35... Kxe3 {[%clk 0:02:06.2]} 36.
h4 {[%clk 0:02:53.4]} 36... f4 {[%clk 0:02:05.9]} 37. h5 {[%clk 0:02:54.2]}
37... f3 {[%clk 0:02:05.9]} 38. h6 {[%clk 0:02:55.1]} 38... f2 {[%clk
0:02:05.7]} 39. Rxf2 {[%clk 0:02:52.1]} 39... Kxf2 {[%clk 0:02:05.1]} 40. Kf6
{[%clk 0:02:52.4]} 40... Rxb2 {[%clk 0:02:01.4]} 41. h7 {[%clk 0:02:53.4]} 41...
Rb8 {[%clk 0:02:01.3]} 42. c4 {[%clk 0:02:54.1]} 42... Rh8 {[%clk 0:01:52.4]}
43. Kg7 {[%clk 0:02:54.4]} 43... Rxh7+ {[%clk 0:01:53.3]} 44. Kxh7 {[%clk
0:02:55.4]} 44... e5 {[%clk 0:01:54.7]} 45. c5 {[%clk 0:02:56.8]} 45... e4
{[%clk 0:01:56.2]} 46. c6 {[%clk 0:02:58.4]} 46... e3 {[%clk 0:01:57.6]} 47. c7
{[%clk 0:03:00]} 47... e2 {[%clk 0:01:58.8]} 48. c8=Q {[%clk 0:03:01.6]} 48...
e1=Q {[%clk 0:02:00]} 49. Qf5+ {[%clk 0:03:01.8]} 49... Ke2 {[%clk 0:02:00]} 50.
Qe4+ {[%clk 0:03:02.8]} 50... Kd1 {[%clk 0:01:59.8]} 51. Qd3+ {[%clk 0:03:04.2]}
51... Qd2 {[%clk 0:02:00.5]} 52. Qb1+ {[%clk 0:03:05.3]} 52... Qc1 {[%clk
0:02:00.4]} 53. Qxc1+ {[%clk 0:03:06.1]} 53... Kxc1 {[%clk 0:02:00.7]} 1/2-1/2

[Event "*** Titled Tuesday Blitz"]
[Site "Chess.com"]
[Date "2018.04.03"]
[Round "5"]
[White "vovachesss"]
[Black "ruvat"]
[Result "0-1"]
[WhiteElo "2408"]
[BlackElo "2281"]
[TimeControl "180+2"]
[EndTime "14:03:06 PDT"]
[Termination "ruvat won on time"]

1. c4 {[%clk 0:03:01.9]} 1... d6 {[%clk 0:03:00.6]} 2. Nc3 {[%clk 0:03:02.6]}
2... e5 {[%clk 0:03:01.4]} 3. b3 {[%clk 0:03:03.9]} 3... f5 {[%clk 0:03:00]} 4.
Bb2 {[%clk 0:03:05.8]} 4... Nf6 {[%clk 0:03:00.9]} 5. g3 {[%clk 0:03:07.3]} 5...
g6 {[%clk 0:03:01.5]} 6. Bg2 {[%clk 0:03:08.8]} 6... Bg7 {[%clk 0:03:02.6]} 7.
d3 {[%clk 0:03:10.3]} 7... O-O {[%clk 0:03:03.5]} 8. e4 {[%clk 0:03:08.2]} 8...
f4 {[%clk 0:02:58.6]} 9. gxf4 {[%clk 0:03:07.7]} 9... Nh5 {[%clk 0:02:59.3]} 10.
Nge2 {[%clk 0:02:58.9]} 10... Nxf4 {[%clk 0:02:58.2]} 11. Nxf4 {[%clk
0:02:59.7]} 11... Rxf4 {[%clk 0:02:57]} 12. Nd5 {[%clk 0:03:00.6]} 12... Rf7
{[%clk 0:02:50]} 13. Qe2 {[%clk 0:02:51.6]} 13... Qh4 {[%clk 0:02:38.4]} 14. O-O
{[%clk 0:01:58.7]} 14... c6 {[%clk 0:02:28.6]} 15. Ne3 {[%clk 0:01:56.5]} 15...
Nd7 {[%clk 0:02:04]} 0-1

[Event "*** Titled Tuesday Blitz"]
[Site "Chess.com"]
[Date "2018.04.03"]
[Round "5"]
[White "r31415"]
[Black "Gattass"]
[Result "1-0"]
[WhiteElo "2200"]
[BlackElo "2194"]
[TimeControl "180+2"]
[EndTime "14:03:09 PDT"]
[Termination "r31415 won by checkmate"]

1. e4 {[%clk 0:03:01.9]} 1... c5 {[%clk 0:02:57.6]} 2. Nf3 {[%clk 0:03:02.5]}
2... Nc6 {[%clk 0:02:57.9]} 3. d4 {[%clk 0:03:03.9]} 3... cxd4 {[%clk
0:02:59.8]} 4. Nxd4 {[%clk 0:03:05.8]} 4... Nf6 {[%clk 0:03:01.1]} 5. Nc3 {[%clk
0:03:07.3]} 5... e6 {[%clk 0:03:01.7]} 6. Ndb5 {[%clk 0:02:51.5]} 6... d6 {[%clk
0:03:01.3]} 7. Bf4 {[%clk 0:02:51.9]} 7... e5 {[%clk 0:03:02.2]} 8. Bg5 {[%clk
0:02:53.4]} 8... a6 {[%clk 0:03:03.7]} 9. Na3 {[%clk 0:02:55]} 9... b5 {[%clk
0:03:04]} 10. Bxf6 {[%clk 0:02:56.6]} 10... gxf6 {[%clk 0:03:03.9]} 11. Nd5
{[%clk 0:02:58.5]} 11... f5 {[%clk 0:03:03.9]} 12. Bd3 {[%clk 0:02:59.5]} 12...
Be6 {[%clk 0:03:03.8]} 13. Qh5 {[%clk 0:03:00.8]} 13... Rg8 {[%clk 0:02:43.1]}
14. g3 {[%clk 0:03:01.3]} 14... Rg5 {[%clk 0:02:34.6]} 15. Qd1 {[%clk
0:03:02.6]} 15... Qa5+ {[%clk 0:02:07.1]} 16. c3 {[%clk 0:02:57.7]} 16... b4
{[%clk 0:02:07.8]} 17. Nc4 {[%clk 0:02:54.8]} 17... Qc5 {[%clk 0:02:05.4]} 18.
Nc7+ {[%clk 0:02:43.4]} 18... Kd7 {[%clk 0:02:05.3]} 19. Nxa8 {[%clk 0:02:45.3]}
19... Bxc4 {[%clk 0:02:04.7]} 20. Bxc4 {[%clk 0:02:46.4]} 20... Qa7 {[%clk
0:02:02.3]} 21. Qd5 {[%clk 0:02:26.3]} 21... bxc3 {[%clk 0:01:50.4]} 22. Qxf7+
{[%clk 0:02:20.2]} 22... Be7 {[%clk 0:01:50.1]} 23. h4 {[%clk 0:01:33.1]} 23...
Rg4 {[%clk 0:01:47.6]} 24. Qxf5+ {[%clk 0:01:29.6]} 24... Kd8 {[%clk 0:01:45.2]}
25. Qxg4 {[%clk 0:01:26.8]} 25... cxb2 {[%clk 0:01:46]} 26. Qg8+ {[%clk
0:01:20.4]} 26... Kd7 {[%clk 0:01:45.4]} 27. Be6# {[%clk 0:01:19.6]} 1-0

[Event "*** Titled Tuesday Blitz"]
[Site "Chess.com"]
[Date "2018.04.03"]
[Round "5"]
[White "RojonR"]
[Black "FitnessBen"]
[Result "1-0"]
[WhiteElo "2398"]
[BlackElo "2468"]
[TimeControl "180+2"]
[EndTime "14:03:15 PDT"]
[Termination "RojonR won by resignation"]

1. e4 {[%clk 0:02:52.4]} 1... c5 {[%clk 0:03:00.4]} 2. Nf3 {[%clk 0:02:53]} 2...
Nc6 {[%clk 0:03:00.9]} 3. Bb5 {[%clk 0:02:53.6]} 3... g6 {[%clk 0:02:56.3]} 4.
Bxc6 {[%clk 0:02:53.6]} 4... dxc6 {[%clk 0:02:58.2]} 5. d3 {[%clk 0:02:53.8]}
5... Bg7 {[%clk 0:02:59.1]} 6. h3 {[%clk 0:02:54.7]} 6... e5 {[%clk 0:02:59.9]}
7. Be3 {[%clk 0:02:55]} 7... Qe7 {[%clk 0:03:01]} 8. Qd2 {[%clk 0:02:54.2]} 8...
Nf6 {[%clk 0:03:00.3]} 9. Nc3 {[%clk 0:02:51.6]} 9... Nd7 {[%clk 0:03:00.9]} 10.
Ne2 {[%clk 0:02:50.8]} 10... Nf8 {[%clk 0:03:00.7]} 11. Bh6 {[%clk 0:02:47]}
11... f6 {[%clk 0:02:58.9]} 12. Bxg7 {[%clk 0:02:46.3]} 12... Qxg7 {[%clk
0:03:00.8]} 13. c3 {[%clk 0:02:37]} 13... Ne6 {[%clk 0:03:01.4]} 14. d4 {[%clk
0:02:31.5]} 14... cxd4 {[%clk 0:02:59.6]} 15. cxd4 {[%clk 0:02:32.1]} 15... exd4
{[%clk 0:02:56.9]} 16. Nexd4 {[%clk 0:02:32.6]} 16... O-O {[%clk 0:02:51.6]} 17.
O-O {[%clk 0:02:31.2]} 17... Bd7 {[%clk 0:02:40.4]} 18. Rad1 {[%clk 0:02:18.7]}
18... Nc5 {[%clk 0:02:37.6]} 19. Rfe1 {[%clk 0:02:04.9]} 19... Rad8 {[%clk
0:02:36.3]} 20. Qc3 {[%clk 0:02:00.7]} 20... Ne6 {[%clk 0:02:17.6]} 21. e5
{[%clk 0:01:47]} 21... fxe5 {[%clk 0:02:03.6]} 22. Nxe5 {[%clk 0:01:44.8]} 22...
Qf6 {[%clk 0:01:39]} 23. Ng4 {[%clk 0:01:40.4]} 23... Qf4 {[%clk 0:01:27.6]} 24.
Nxe6 {[%clk 0:01:22.1]} 24... Bxe6 {[%clk 0:01:27.6]} 25. Rxd8 {[%clk
0:01:22.3]} 25... Rxd8 {[%clk 0:01:27.9]} 26. Rxe6 {[%clk 0:01:19.2]} 1-0

[Event "*** Titled Tuesday Blitz"]
[Site "Chess.com"]
[Date "2018.04.03"]
[Round "5"]
[White "Patzel09"]
[Black "severomorskij"]
[Result "1-0"]
[WhiteElo "2556"]
[BlackElo "2657"]
[TimeControl "180+2"]
[EndTime "14:03:23 PDT"]
[Termination "Patzel09 won by resignation"]

1. e4 {[%clk 0:03:01.9]} 1... c5 {[%clk 0:03:00.3]} 2. c3 {[%clk 0:03:02.7]}
2... d5 {[%clk 0:03:00.2]} 3. exd5 {[%clk 0:03:04.2]} 3... Qxd5 {[%clk
0:03:01.2]} 4. Nf3 {[%clk 0:03:05.4]} 4... Nc6 {[%clk 0:03:01.7]} 5. Na3 {[%clk
0:03:06.6]} 5... Bf5 {[%clk 0:02:56.9]} 6. Bc4 {[%clk 0:03:05.3]} 6... Qe4+
{[%clk 0:02:51.8]} 7. Be2 {[%clk 0:03:06]} 7... Nf6 {[%clk 0:02:40.3]} 8. d3
{[%clk 0:03:06.5]} 8... Qd5 {[%clk 0:02:38.8]} 9. Nc4 {[%clk 0:03:06.7]} 9...
Bg6 {[%clk 0:02:24.4]} 10. O-O {[%clk 0:03:05]} 10... O-O-O {[%clk 0:02:17.4]}
11. Bf4 {[%clk 0:02:58.9]} 11... Nh5 {[%clk 0:02:12.1]} 12. Be3 {[%clk
0:02:57.3]} 12... e6 {[%clk 0:02:06]} 13. Qa4 {[%clk 0:02:54.3]} 13... Bd6
{[%clk 0:01:52.5]} 14. Ne1 {[%clk 0:02:45.9]} 14... Bc7 {[%clk 0:01:10.7]} 15.
Bf3 {[%clk 0:02:44.1]} 15... Qd7 {[%clk 0:01:11.4]} 16. b4 {[%clk 0:02:33.6]}
16... cxb4 {[%clk 0:01:04.5]} 17. cxb4 {[%clk 0:02:32.5]} 17... a6 {[%clk
0:00:57.7]} 18. Rc1 {[%clk 0:02:28.3]} 18... Kb8 {[%clk 0:00:54.6]} 19. b5
{[%clk 0:02:27.8]} 19... Ne7 {[%clk 0:00:44.6]} 20. Bxb7 {[%clk 0:02:20]} 20...
Qxb5 {[%clk 0:00:35.2]} 21. Qxa6 {[%clk 0:02:09.7]} 21... Qxb7 {[%clk
0:00:33.8]} 22. Rb1 {[%clk 0:02:06.9]} 1-0